fUSD/lending_fUSD_20240918
["ID","MTS","AMOUNT","RATE_DAILY","PERIOD"]
[338465760,1726665042126,-170.41107061,0.000149,2]
[338465761,1726665042135,-193.5375594,0.000149,2]
[338465762,1726665042145,-194.03,0.000149,2]
[338465763,1726665042155,-374.1802708,0.000149,2]
[338465764,1726665042164,-26479.67829592,0.000149,2]
[338465765,1726665042174,-161.61428303,0.000149,2]
[338465766,1726665042183,-8500.0,0.000149,2]
[338465767,1726665042192,-1083.58709621,0.000149,2]
[338465768,1726665042201,-3000.34742215,0.000149,2]
[338465769,1726665042210,-158.8066396,0.000149,2]
[338465770,1726665042220,-1495.98,0.00014917,2]
[338465771,1726665042229,-11823.3609066,0.00014925,2]
[338465772,1726665042239,-23646.7218132,0.00014945,2]
[338465773,1726665042249,-150.30553169,0.0001495,5]
[338465774,1726665042258,-47586.07841277,0.00014955,2]
[338465775,1726665042268,-1602.01301131,0.00014956,2]
[338465776,1726665042277,-1000.0,0.00014961,2]
[338465777,1726665042287,-400.0,0.0001497,2]
[338465778,1726665042296,-400.13599649,0.0001497,2]
[338465779,1726665042305,-118233.609066,0.0001497,2]
[338465780,1726665042314,-150.0,0.00014973,2]
[338465781,1726665042324,-150.30435331,0.0001498,2]
[338465782,1726665042333,-2999.98,0.0001498,2]
[338465783,1726665042343,-3000.0,0.0001498,2]
[338465784,1726665042352,-3000.0,0.0001498,2]
[338465785,1726665042361,-3000.0,0.0001498,2]
[338465786,1726665042371,-3000.0,0.0001498,2]
[338465787,1726665042380,-1083.28,0.0001498,2]
[338465788,1726665042391,-331978.68169959,0.0001498,2]
[338465789,1726665042401,-2373.24868502,0.0001498,2]
[338465790,1726665042410,-201.415864,0.0001498,2]
[338465791,1726665042420,-201.415864,0.0001498,2]
[338465792,1726665042430,-151.0,0.0001498,2]
[338465793,1726665042440,-151.0,0.0001498,2]
[338465794,1726665042450,-337.34098,0.0001498,2]
[338465795,1726665042461,-337.34098,0.0001498,2]
[338465796,1726665042472,-174.27698,0.0001498,2]
[338465797,1726665042481,-385.620967,0.0001498,2]
[338465798,1726665042491,-385.620967,0.0001498,2]
[338465799,1726665042503,-151.0,0.0001498,2]
[338465800,1726665042515,-151.0,0.0001498,2]
[338465801,1726665042524,-151.0,0.0001498,2]
[338465802,1726665042534,-151.0,0.0001498,2]
[338465803,1726665042543,-151.0,0.0001498,2]
[338465804,1726665042553,-536.18608,0.0001498,2]
[338465805,1726665042563,-536.18608,0.0001498,2]
[338465806,1726665042575,-311.406233,0.0001498,2]
[338465807,1726665042585,-151.0,0.0001498,2]
[338465808,1726665042594,-151.0,0.0001498,2]
[338465809,1726665042604,-311.406233,0.0001498,2]
[338465810,1726665042614,-151.0,0.0001498,2]
[338465811,1726665042624,-151.0,0.0001498,2]
[338465812,1726665042634,-151.0,0.0001498,2]
[338465813,1726665042644,-152.562291,0.0001498,2]
[338465814,1726665042653,-153.09858,0.0001498,2]
[338465815,1726665042664,-151.0,0.0001498,2]
[338465816,1726665042674,-151.0,0.0001498,2]
[338465817,1726665042684,-154.336273,0.0001498,2]
[338465818,1726665042694,-151.0,0.0001498,2]
[338465819,1726665042703,-428.590854,0.0001498,2]
[338465820,1726665042712,-151.0,0.0001498,2]
[338465821,1726665042723,-151.0,0.0001498,2]
[338465822,1726665042733,-216.118057,0.0001498,2]
[338465826,1726665042742,-428.590854,0.0001498,2]
[338465828,1726665042753,-216.118057,0.0001498,2]
[338465830,1726665042762,-151.0,0.0001498,2]
[338465833,1726665042771,-151.0,0.0001498,2]
[338465835,1726665042780,-151.0,0.0001498,2]
[338465837,1726665042790,-151.0,0.0001498,2]
[338465839,1726665042800,-363.655056,0.0001498,2]
[338465840,1726665042809,-258.197065,0.0001498,2]
[338465841,1726665042819,-258.197065,0.0001498,2]
[338465842,1726665042828,-363.655056,0.0001498,2]
[338465843,1726665042837,-170.522513,0.0001498,2]
[338465844,1726665042847,-170.522513,0.0001498,2]
[338465845,1726665042856,-151.0,0.0001498,2]
[338465846,1726665042865,-151.0,0.0001498,2]
[338465847,1726665042875,-242.455427,0.0001498,2]
[338465848,1726665042885,-242.455427,0.0001498,2]
[338465849,1726665042894,-151.0,0.0001498,2]
[338465850,1726665042904,-151.0,0.0001498,2]
[338465851,1726665042913,-152.593933,0.0001498,2]
[338465852,1726665042923,-171.605128,0.00014986,2]
[338465853,1726665042932,-171.605128,0.00014986,2]
[338465854,1726665042942,-151.0,0.00014986,2]
[338465855,1726665042952,-151.0,0.00014986,2]
[338465856,1726665042961,-151.0,0.00014986,2]
[338465857,1726665042972,-151.0,0.00014986,2]
[338465858,1726665042982,-151.0,0.00014986,2]
[338465859,1726665042991,-151.0,0.00014986,2]
[338465860,1726665043001,-177.466345,0.00014986,2]
[338465861,1726665043011,-177.466345,0.00014986,2]
[338465862,1726665043021,-151.0,0.00014986,2]
[338465863,1726665043031,-151.0,0.00014986,2]
[338465864,1726665043040,-151.0,0.00014986,2]
[338465865,1726665043050,-151.0,0.00014986,2]
[338465866,1726665043063,-151.0,0.00014986,2]
[338465867,1726665043073,-151.0,0.00014986,2]
[338465868,1726665043082,-151.0,0.00014986,2]
[338465869,1726665043092,-881.758181,0.00014986,2]
[338465870,1726665043101,-881.758181,0.00014986,2]
[338465871,1726665043111,-1009.04265,0.00014986,2]
[338465872,1726665043121,-1009.04265,0.00014986,2]
[338465873,1726665043131,-151.0,0.00014986,2]
[338465875,1726665043140,-151.0,0.00014986,2]
[338465876,1726665043149,-151.0,0.00014986,2]
[338465877,1726665043158,-151.0,0.00014986,2]
[338465878,1726665043167,-151.0,0.00014986,2]
[338465879,1726665043176,-337.34098,0.00014986,2]
[338465880,1726665043186,-337.34098,0.00014986,2]
[338465881,1726665043196,-385.620967,0.00014986,2]
[338465883,1726665043206,-385.620967,0.00014986,2]
[338465885,1726665043216,-151.232957,0.00014986,2]
[338465887,1726665043227,-151.0,0.00014986,2]
[338465889,1726665043236,-151.0,0.00014986,2]
[338465892,1726665043246,-151.0,0.00014986,2]
[338465895,1726665043255,-154.166824,0.00014986,2]
[338465898,1726665043265,-536.18608,0.00014986,2]
[338465900,1726665043274,-536.18608,0.00014986,2]
[338465902,1726665043284,-311.406233,0.00014986,2]
[338465904,1726665043294,-151.0,0.00014986,2]
[338465906,1726665043303,-151.0,0.00014986,2]
[338465908,1726665043313,-311.406233,0.00014986,2]
[338465910,1726665043322,-151.0,0.00014986,2]
[338465912,1726665043332,-151.0,0.00014986,2]
[338465914,1726665043342,-151.0,0.00014986,2]
[338465916,1726665043352,-151.0,0.00014986,2]
[338465918,1726665043362,-151.0,0.00014986,2]
[338465920,1726665043372,-151.0,0.00014986,2]
[338465922,1726665043383,-428.590854,0.00014986,2]
[338465924,1726665043394,-151.0,0.00014986,2]
[338465926,1726665043403,-151.0,0.00014986,2]
[338465928,1726665043413,-216.118057,0.00014986,2]
[338465930,1726665043422,-428.590854,0.00014986,2]
[338465932,1726665043431,-216.118057,0.00014986,2]
[338465934,1726665043443,-151.0,0.00014986,2]
[338465936,1726665043454,-151.0,0.00014986,2]
[338465938,1726665043464,-151.0,0.00014986,2]
[338465940,1726665043476,-363.655056,0.00014986,2]
[338465942,1726665043485,-258.197065,0.00014986,2]
[338465944,1726665043495,-363.655056,0.00014986,2]
[338465946,1726665043508,-258.197065,0.00014986,2]
[338465949,1726665043519,-170.522513,0.00014986,2]
[338465951,1726665043529,-151.0,0.00014986,2]
[338465953,1726665043539,-170.522513,0.00014986,2]
[338465955,1726665043549,-151.0,0.00014986,2]
[338465957,1726665043561,-151.0,0.00014986,2]
[338465958,1726665043571,-151.0,0.00014986,2]
[338465959,1726665043581,-151.0,0.00014986,2]
[338465960,1726665043591,-242.455427,0.00014986,2]
[338465961,1726665043601,-467.110144,0.00014986,2]
[338465962,1726665043610,-242.455427,0.00014986,2]
[338465963,1726665043619,-467.110144,0.00014986,2]
[338465964,1726665043629,-724.32837,0.00014986,2]
[338465965,1726665043638,-151.0,0.00014986,2]
[338465966,1726665043648,-724.32837,0.00014986,2]
[338465967,1726665043657,-151.0,0.00014986,2]
[338465968,1726665043666,-151.0,0.00014986,2]
[338465969,1726665043676,-319.910795,0.00014986,2]
[338465970,1726665043685,-319.910795,0.00014986,2]
[338465971,1726665043695,-151.0,0.00014986,2]
[338465972,1726665043704,-151.0,0.00014986,2]
[338465973,1726665043713,-352.464614,0.00014986,2]
[338465974,1726665043723,-352.464614,0.00014986,2]
[338465975,1726665043733,-151.0,0.00014986,2]
[338465976,1726665043742,-151.0,0.00014986,2]
[338465977,1726665043751,-151.0,0.00014986,2]
[338465978,1726665043762,-151.0,0.00014986,2]
[338465979,1726665043771,-184.11322,0.00014986,2]
[338465980,1726665043781,-1100.0,0.00014986,2]
[338465981,1726665043790,-151.0,0.00014986,2]
[338465982,1726665043799,-1100.0,0.00014986,2]
[338465983,1726665043809,-151.0,0.00014986,2]
[338465984,1726665043820,-677.662737,0.00014986,2]
[338465985,1726665043829,-677.662737,0.00014986,2]
[338465986,1726665043839,-219.406913,0.00014986,2]
[338465987,1726665043848,-151.0,0.00014986,2]
[338465988,1726665043857,-219.406913,0.00014986,2]
[338465989,1726665043866,-151.0,0.00014986,2]
[338465990,1726665043876,-483.519216,0.00014986,2]
[338465991,1726665043885,-151.0,0.00014986,2]
[338465992,1726665043894,-201.93241,0.00014986,2]
[338465993,1726665043903,-483.519216,0.00014986,2]
[338465994,1726665043913,-201.93241,0.00014986,2]
[338465995,1726665043922,-151.0,0.00014986,2]
[338465996,1726665043932,-945.486864,0.00014986,2]
[338465997,1726665043941,-945.486864,0.00014986,2]
[338465998,1726665043951,-253.902279,0.00014986,2]
[338465999,1726665043960,-253.902279,0.00014986,2]
[338466000,1726665043969,-232.513615,0.00014986,2]
[338466001,1726665043978,-151.0,0.00014986,2]
[338466002,1726665043987,-232.513615,0.00014986,2]
[338466003,1726665043997,-301.397845,0.00014986,2]
[338466004,1726665044006,-151.0,0.00014986,2]
[338466005,1726665044015,-166.73121049,0.00014986,2]
[338466006,1726665044024,-307683.0,0.00014986,2]
[338466007,1726665044034,-27357.0,0.00014986,2]
[338466008,1726665044043,-151.47,0.00014988,2]
[338466009,1726665044053,-1359.55225209,0.0001499,2]
[338466010,1726665044063,-2719.83122359,0.0001499,2]
[338466011,1726665044075,-191.8705803,0.0001499,2]
[338466012,1726665044085,-151.47,0.0001499,2]
[338466013,1726665044095,-151.47,0.0001499,2]
[338466014,1726665044104,-151.47,0.0001499,2]
[338466015,1726665044115,-151.47,0.0001499,2]
[338466016,1726665044124,-189500.80782089,0.00014998,2]
[338466017,1726665044134,-121087.827564,0.00014998,5]
[338466018,1726665044143,-151.0,0.00014998,2]
[338466019,1726665044153,-536.18608,0.00014998,2]
[338466020,1726665044163,-536.18608,0.00014998,2]
[338466021,1726665044172,-311.406233,0.00014998,2]
[338466022,1726665044181,-151.0,0.00014998,2]
[338466023,1726665044191,-151.0,0.00014998,2]
[338466024,1726665044202,-311.406233,0.00014998,2]
[338466025,1726665044212,-151.744052,0.00014998,2]
[338466026,1726665044221,-151.0,0.00014998,2]
[338466027,1726665044230,-235.54683,0.00014998,2]
[338466028,1726665044240,-151.0,0.00014998,2]
[338466029,1726665044249,-428.590854,0.00014998,2]
[338466030,1726665044258,-151.0,0.00014998,2]
[338466031,1726665044268,-151.0,0.00014998,2]
[338466032,1726665044277,-216.118057,0.00014998,2]
[338466033,1726665044287,-428.590854,0.00014998,2]
[338466034,1726665044296,-216.118057,0.00014998,2]
[338466035,1726665044306,-151.0,0.00014998,2]
[338466036,1726665044315,-151.0,0.00014998,2]
[338466037,1726665044325,-151.0,0.00014998,2]
[338466038,1726665044334,-363.655056,0.00014998,2]
[338466039,1726665044343,-258.197065,0.00014998,2]
[338466040,1726665044353,-363.655056,0.00014998,2]
[338466041,1726665044364,-258.197065,0.00014998,2]
[338466042,1726665044374,-170.522513,0.00014998,2]
[338466043,1726665044384,-151.0,0.00014998,2]
[338466044,1726665044393,-170.522513,0.00014998,2]
[338466045,1726665044403,-151.0,0.00014998,2]
[338466046,1726665044413,-151.0,0.00014998,2]
[338466047,1726665044423,-151.0,0.00014998,2]
[338466048,1726665044432,-151.0,0.00014998,2]
[338466049,1726665044442,-242.455427,0.00014998,2]
[338466050,1726665044452,-467.110144,0.00014998,2]
[338466051,1726665044461,-242.455427,0.00014998,2]
[338466052,1726665044470,-467.110144,0.00014998,2]
[338466053,1726665044489,-724.32837,0.00014998,2]
[338466054,1726665044501,-151.0,0.00014998,2]
[338466055,1726665044511,-724.32837,0.00014998,2]
[338466056,1726665044521,-151.0,0.00014998,2]
[338466057,1726665044531,-151.0,0.00014998,2]
[338466058,1726665044540,-319.910795,0.00014998,2]
[338466059,1726665044550,-319.910795,0.00014998,2]
[338466060,1726665044559,-677.662737,0.00014998,2]
[338466061,1726665044569,-677.662737,0.00014998,2]
[338466062,1726665044580,-151.0,0.00014998,2]
[338466063,1726665044591,-500.00000099,0.00014999,14]
[338466064,1726665044600,-500.0,0.00014999,14]
[338466065,1726665044610,-320.88609696,0.00014999,2]
[338466066,1726665044621,-2198.11954775,0.00014999,2]
[338466067,1726665044630,-46559.97844762,0.00014999,3]
[338466068,1726665044640,-164.05,0.00014999,2]
[338466069,1726665044651,-2901199.12559894,0.00015,2]
[338466070,1726665044662,-279772.55952771,0.00015,2]
[338466071,1726665044672,-913743.35253056,0.00015,2]
[338466072,1726665044688,-211709.10608023,0.00015,2]
[338466073,1726665044699,-117617.95877687,0.00015,2]
[338466074,1726665044711,-1275.2531778,0.00015,2]
[338466075,1726665044725,-1748.56626615,0.00015,2]
[338466076,1726665044737,-1467.8621135,0.00015,2]
[338466077,1726665044863,-1411.57008937,0.00015,2]
[338466078,1726665044874,-2025.26791969,0.00015,2]
[338466079,1726665044886,-1206.83348292,0.00015,2]
[338466080,1726665044898,-6409.92876456,0.00015,2]
[338466081,1726665044931,-78079.80296049,0.00015,2]
[338466082,1726665044956,-564.38137909,0.00015,2]
[338466083,1726665045684,-329.50705356,0.000145,2]
[338466084,1726665045694,-1995.84217585,0.000149,2]
[338466085,1726665045706,-4890.46505808,0.000149,2]
[338466086,1726665045716,-2474.70135897,0.00015,2]
[338466087,1726665045747,-6723.34743954,0.00015,2]
[338466088,1726665045759,-5867.91004832,0.00015,2]
[338466089,1726665046151,-214157.70565681,0.00015,2]
[338466090,1726665046164,-56162.05529899,0.00015,2]
[338466092,1726665046407,-1729.93102239,0.00015,2]
[338466093,1726665046431,-1535.85323252,0.00015,2]
[338466107,1726665047313,-308.1,0.00015,2]
[338466108,1726665047342,-88515.1135588,0.00015,2]
[338466109,1726665047355,-355.99679615,0.00015,2]
[338466110,1726665272720,155.14,0.00012042,2]
[338466111,1726665680380,202.96,0.00010959,2]
[338466112,1726665868287,155.14,0.00011596,2]
[338466117,1726666104738,5578.64183989,0.00012,2]
[338466130,1726666232083,-164.329,0.00012993,2]
[338466131,1726666232093,-534.06,0.00013,2]
[338466132,1726666232103,-995.26,0.00013,2]
[338466133,1726666232113,-150.0,0.0001334,2]
[338466134,1726666232122,-200.0,0.00013446,2]
[338466135,1726666232132,-150.0,0.00013488,2]
[338466136,1726666232141,-150.0,0.00013488,2]
[338466137,1726666232151,-150.0,0.00013488,2]
[338466138,1726666232161,-250.0,0.00013503,2]
[338466139,1726666232170,-250.0,0.00013513,2]
[338466140,1726666232179,-528.0,0.00013519,2]
[338466141,1726666232189,-502.48,0.00013524,2]
[338466142,1726666232198,-152.35,0.00013529,2]
[338466143,1726666232207,-504.52,0.00013529,2]
[338466144,1726666232217,-174.2,0.00013533,2]
[338466145,1726666232227,-1070.79,0.00013533,2]
[338466146,1726666232237,-150.0,0.00013594,2]
[338466147,1726666232246,-168.22,0.00013595,2]
[338466148,1726666232255,-7850.5631305,0.00013595,2]
[338466149,1726666232268,-457.01764906,0.00013595,2]
[338466152,1726666232280,-17456.59072017,0.00013595,2]
[338466154,1726666232311,-1155.18850027,0.00013595,2]
[338466155,1726666232321,-144.81149903,0.00013595,2]
[338466156,1726666232332,-155.17850097,0.00013595,2]
[338466157,1726666232342,-169.6,0.00013604,2]
[338466158,1726666232352,-23.48572386,0.00013639,2]
[338466159,1726666232364,-448.51427614,0.00013639,2]
[338466160,1726666232374,-1240.4,0.00013643,2]
[338466162,1726666232384,-2751.0,0.00013699,2]
[338466164,1726666232393,-150.0,0.00013699,2]
[338466166,1726666232404,-200.0,0.00013699,2]
[338466168,1726666232413,-200.0,0.00013885,2]
[338466169,1726666232422,-769.23339812,0.000139,2]
[338466172,1726666232433,-150.0,0.00013987,2]
[338466174,1726666232442,-150.0,0.00014059,2]
[338466175,1726666232451,-333.32,0.00014096,2]
[338466176,1726666232461,-261.0,0.0001419,2]
[338466177,1726666232471,-155.14,0.00014284,2]
[338466178,1726666232480,-500.0,0.00014345,2]
[338466179,1726666232490,-500.0,0.00014354,2]
[338466180,1726666232499,-500.0,0.00014362,2]
[338466181,1726666232508,-500.0,0.00014371,2]
[338466182,1726666232518,-500.0,0.0001438,2]
[338466183,1726666232527,-500.0,0.00014389,2]
[338466184,1726666232537,-500.0,0.00014398,2]
[338466185,1726666232546,-500.0,0.00014406,2]
[338466186,1726666232556,-500.0,0.00014415,2]
[338466187,1726666232565,-150.0,0.0001442,2]
[338466188,1726666232575,-500.0,0.00014424,2]
[338466189,1726666232584,-500.0,0.00014433,2]
[338466190,1726666232594,-500.0,0.00014442,2]
[338466191,1726666232604,-500.0,0.0001445,2]
[338466192,1726666232614,-500.0,0.00014459,2]
[338466193,1726666232624,-500.0,0.00014468,2]
[338466194,1726666232634,-500.0,0.00014477,2]
[338466195,1726666232644,-500.0,0.00014486,2]
[338466196,1726666232655,-150.0,0.00014487,2]
[338466197,1726666232665,-500.0,0.00014494,2]
[338466198,1726666232674,-500.0,0.00014503,2]
[338466199,1726666232684,-500.0,0.00014512,2]
[338466200,1726666232694,-1000.0,0.00014521,2]
[338466201,1726666232703,-500.0,0.00014521,2]
[338466202,1726666232713,-500.0,0.0001453,2]
[338466203,1726666232722,-163.27,0.00014536,2]
[338466204,1726666232731,-500.0,0.00014538,2]
[338466205,1726666232741,-4601.02807711,0.00014543,2]
[338466206,1726666232751,-23830.31703739,0.00014546,2]
[338466207,1726666232760,-500.0,0.00014547,2]
[338466208,1726666232770,-163.27,0.00014555,2]
[338466209,1726666232780,-500.0,0.00014556,2]
[338466210,1726666232790,-500.0,0.00014565,2]
[338466211,1726666232800,-150.0,0.000146,2]
[338466212,1726666232809,-200.1,0.000146,2]
[338466213,1726666232819,-995.26,0.0001473,2]
[338466214,1726666232829,-150.0,0.0001478,2]
[338466215,1726666232838,-447.493362,0.00014795,2]
[338466216,1726666232847,-3000.0,0.000148,2]
[338466217,1726666232856,-1737.51257585,0.00014834,2]
[338466218,1726666232866,-5800.0,0.00014866,2]
[338466219,1726666232875,-5800.0,0.00014874,2]
[338466220,1726666232884,-500.0,0.0001488,2]
[338466221,1726666232894,-2000.0,0.0001488,2]
[338466222,1726666232905,-500.0,0.0001488,2]
[338466223,1726666232914,-500.0,0.0001488,2]
[338466224,1726666232924,-5800.0,0.00014883,2]
[338466225,1726666232933,-2500.0,0.0001489,2]
[338466226,1726666232943,-163.27,0.0001489,2]
[338466227,1726666232954,-184.03441111,0.0001489,2]
[338466228,1726666232966,-171.39262283,0.0001489,2]
[338466229,1726666232976,-5800.0,0.00014891,2]
[338466230,1726666232986,-171.39262282,0.00014895,2]
[338466231,1726666232996,-997.32,0.00014898,2]
[338466232,1726666233006,-300.0,0.00014899,2]
[338466233,1726666233016,-35000.0,0.000149,2]
[338466234,1726666233028,-5800.0,0.000149,2]
[338466235,1726666233038,-201.34185824,0.000149,2]
[338466236,1726666233048,-192.0686,0.000149,2]
[338466237,1726666233058,-212.21297435,0.000149,2]
[338466238,1726666233068,-212.21297434,0.000149,2]
[338466239,1726666233079,-405.73606374,0.000149,2]
[338466240,1726666233088,-212.21297434,0.000149,2]
[338466241,1726666233098,-387.36351473,0.000149,2]
[338466242,1726666233108,-164.67766966,0.000149,2]
[338466243,1726666233118,-157.15454422,0.000149,2]
[338466244,1726666233128,-171.39262282,0.000149,2]
[338466245,1726666233138,-174.49724788,0.000149,2]
[338466246,1726666233150,-162.94,0.00014933,2]
[338466247,1726666233159,-300.0,0.0001497,2]
[338466248,1726666233169,-403.61808621,0.00014973,2]
[338466249,1726666233179,-151.0,0.0001498,2]
[338466250,1726666233189,-151.0,0.0001498,2]
[338466251,1726666233199,-151.0,0.0001498,2]
[338466252,1726666233208,-235.500409,0.0001498,2]
[338466253,1726666233218,-276.8872458,0.0001498,2]
[338466254,1726666233227,-53205.1240798,0.0001498,2]
[338466255,1726666233237,-151.35,0.0001498,2]
[338466256,1726666233246,-46554.4835699,0.00014985,2]
[338466257,1726666233256,-151.0,0.00014986,2]
[338466258,1726666233265,-151.0,0.00014986,2]
[338466259,1726666233275,-151.0,0.00014986,2]
[338466260,1726666233285,-179.1312418,0.00014986,2]
[338466261,1726666233295,-261.94129289,0.00014986,2]
[338466262,1726666233304,-217.34399043,0.00014986,2]
[338466263,1726666233314,-6650.64050998,0.00014988,2]
[338466264,1726666233324,-53205.1240798,0.00014989,2]
[338466265,1726666233333,-52202.7773146,0.00014989,2]
[338466266,1726666233343,-500.0,0.00014989,2]
[338466267,1726666233352,-431.99324153,0.00014989,2]
[338466268,1726666233362,-5560.07932199,0.0001499,2]
[338466269,1726666233374,-9195.44957511,0.0001499,2]
[338466271,1726666238077,-98305.3597729,0.0001499,2]
[338466272,1726666238086,-215.5960153,0.0001499,2]
[338466273,1726666238096,-215.5960153,0.0001499,2]
[338466274,1726666238105,-215.5960153,0.0001499,2]
[338466275,1726666238115,-215.5960153,0.0001499,2]
[338466276,1726666238124,-215.5960153,0.0001499,2]
[338466277,1726666238133,-52011.50749819,0.0001499,3]
[338466278,1726666238178,-78192.71671266,0.0001499,3]
[338466279,1726666238189,-570.23685725,0.0001499,3]
[338466280,1726666238200,-384.30158449,0.0001499,3]
[338466281,1726666238223,-441.66001173,0.0001499,3]
[338466282,1726666238234,-1089.05208853,0.0001499,3]
[338466283,1726666238257,-1839.93992941,0.0001499,3]
[338466311,1726666240218,-132494.97592452,0.0001499,3]
[338466312,1726666240229,-31718.04438256,0.0001499,2]
[338466313,1726666240238,-646.788046,0.00014993,2]
[338466314,1726666240248,-26673.11249345,0.00014995,2]
[338466315,1726666240279,-389.44550813,0.00014995,2]
[338466316,1726666240291,-6905.52589726,0.00014995,2]
[338466317,1726666240304,-29357.46720003,0.00014995,2]
[338466318,1726666240345,-917.90705232,0.00014995,2]
[338466319,1726666240359,-3008.813953,0.00014995,2]
[338466320,1726666240372,-23050.14789581,0.00014995,2]
[338466321,1726666240383,-151.0,0.00014998,2]
[338466322,1726666240393,-151.0,0.00014998,2]
[338466323,1726666240403,-151.0,0.00014998,2]
[338466324,1726666240413,-9431.80611711,0.00014998,2]
[338466325,1726666240422,-2186.6810563,0.00014999,2]
[338466326,1726666240432,-21184.2722303,0.00014999,2]
[338466327,1726666240442,-155.82709448,0.00014999,2]
[338466329,1726666240451,-1000.0,0.00014999,2]
[338466331,1726666240461,-1000.0,0.00014999,2]
[338466333,1726666240472,-1000.0,0.00014999,2]
[338466335,1726666240481,-1000.0,0.00014999,2]
[338466337,1726666240491,-1000.0,0.00014999,2]
[338466339,1726666240500,-1000.0,0.00014999,2]
[338466341,1726666240510,-1000.0,0.00014999,2]
[338466343,1726666240519,-1000.0,0.00014999,2]
[338466345,1726666240530,-1000.0,0.00014999,2]
[338466347,1726666240539,-18292.26237617,0.00014999,2]
[338466349,1726666240551,-77233.92666734,0.00014999,2]
[338466351,1726666240560,-1725.50701897,0.00014999,2]
[338466353,1726666240570,-527.0,0.00015,2]
[338466355,1726666240580,-22378.2409369,0.00015,2]
[338466357,1726666240589,-226130.81763555,0.00015,2]
[338466780,1726666246219,-155.82709448,0.00014999,2]
[338466781,1726666246229,-161.37233438,0.00015,2]
[338466825,1726666577962,158.82,0.0001178,2]
[338466827,1726667094329,71.18818522,0.00011618,2]
[338466828,1726667094356,99.72181478,0.00011618,2]
[338466846,1726667432934,-308.06435349,0.00013,2]
[338466847,1726667432946,-198.14564651,0.00013,2]
[338466848,1726667432956,-1005.4,0.00013,2]
[338466849,1726667432965,-250.0,0.00013435,2]
[338466850,1726667432975,-546.83,0.0001345,2]
[338466851,1726667432984,-333.94,0.00013472,2]
[338466852,1726667432994,-250.0,0.00013481,2]
[338466853,1726667433005,-365.69,0.00013499,2]
[338466854,1726667433015,-422.4,0.00013504,2]
[338466855,1726667433025,-577.6,0.00013513,2]
[338466856,1726667433035,-153.41,0.00013517,2]
[338466857,1726667433045,-150.0,0.0001354,2]
[338466858,1726667433054,-1146.0,0.0001354,2]
[338466859,1726667433064,-164.01,0.00013556,2]
[338466860,1726667433074,-300.0,0.00013698,2]
[338466861,1726667433084,-2067.0,0.00013699,2]
[338466862,1726667433094,-150.0,0.00013699,2]
[338466863,1726667433104,-200.0,0.00013699,2]
[338466864,1726667433114,-2710.58,0.00013699,2]
[338466865,1726667433123,-1688.54,0.00013766,2]
[338466866,1726667433133,-170.91,0.00013882,2]
[338466867,1726667433143,-171.45,0.00014005,2]
[338466868,1726667433152,-150.0,0.00014059,2]
[338466869,1726667433162,-500.0,0.00014239,2]
[338466870,1726667433172,-500.0,0.00014248,2]
[338466871,1726667433182,-500.0,0.00014257,2]
[338466872,1726667433192,-500.0,0.00014266,2]
[338466873,1726667433202,-500.0,0.00014274,2]
[338466874,1726667433213,-500.0,0.00014283,2]
[338466875,1726667433223,-500.0,0.00014292,2]
[338466876,1726667433233,-500.0,0.00014301,2]